Cogmind - Beta 16.1 @@@ ROGUE MODE // 2026.02.14 @ 11:07:55 Player: UniqueName Result: Core destroyed Performance ------------- Evolutions (3) 1500 Regions Visited (6) 1200 Robots Destroyed (103) 515 Value Destroyed (4174) 4174 Prototype IDs (5) 100 Alien Tech Used (0) 0 Bonus (726) 726 TOTAL SCORE: 8215 Bonus ------- High Alert Combat Kills 449 Follower Combat Kills 77 Entered Garrisons 200 Cogmind --------- Core Integrity 0/700 Matter 225/300 Energy 301/360 System Corruption 1% Temperature Critical (512) Movement Rolling (110) Ox2 Location -7/Factory Parts ------- > --- POWER (2) -------- Heavy Deuterium Engine Micro Nuclear Core > --- PROPULSION (6) --- Aluminum Leg Wheel > --- UTILITY (3) ------ Visual Processing Unit Advanced ECM Suite System Shield > --- WEAPON (2) ------- Plasma Cannon > --- INVENTORY (5) ---- Improved Signal Interpreter Arc Projector EM Pulse Cannon Cooled Particle Cannon Flak Gun Peak State ------------ > --- POWER ------------ Heavy Deuterium Engine Heavy Deuterium Engine > --- PROPULSION ------- Light Treads Light Treads Light Treads Armored Treads Armored Huge Wheel > --- UTILITY ---------- Medium Storage Unit Visual Processing Unit Advanced ECM Suite > --- WEAPON ----------- Flak Gun Advanced Assault Cannon > --- INVENTORY -------- Heavy Deuterium Engine Improved Signal Interpreter Improved Targeting Computer System Shield Arc Projector Heavy Particle Gun EM Pulse Cannon Flak Gun Grenade Launcher Katana [Rating: 42] Favorites ----------- Power Heavy Deuterium Engine Engine Heavy Deuterium Engine Power Core Light Nuclear Core Propulsion Aluminum Leg Treads Light Treads Leg Aluminum Leg Wheel Armored Huge Wheel Flight Unit VTOL Module Utility Visual Processing Unit Device Advanced ECM Suite Storage Medium Storage Unit Processor Visual Processing Unit Hackware System Shield Weapon Advanced Assault Cannon Energy Gun Beam Rifle Energy Cannon Particle Cannon Ballistic Gun Flak Gun Ballistic Cannon Advanced Assault Cannon Launcher Grenade Launcher Slashing Weapon Katana Build | -11 -10 -9 -9 -8 -8 -7 ------- Run | Yrd Mat Mat Min Mat Gar Fac Slots Evolved 6 | . . 2 . 2 . 2 Power 1 | . . . . . . 1 Propulsion 4 | . . 2 . 1 . 1 Utility 1 | . . . . 1 . . Weapon . | . . . . . . . Parts Attached 76 | 6 3 15 1 4 17 30 Power 18 | 1 1 2 1 . 3 10 Engine 14 | 1 1 2 1 . 3 6 Core 4 | . . . . . . 4 Reactor . | . . . . . . . Propulsion 31 | 2 . 9 . 3 8 9 Treads 6 | 2 . . . . . 4 Leg 21 | . . 9 . 3 8 1 Wheel 2 | . . . . . . 2 Hover . | . . . . . . . Flight 2 | . . . . . . 2 Utility 7 | 1 2 1 . 1 . 2 Device 2 | . 1 . . . . 1 Storage 2 | 1 . 1 . . . . Processor 2 | . 1 . . 1 . . Hackware 1 | . . . . . . 1 Protection . | . . . . . . . Artifact . | . . . . . . . Weapon 20 | 2 . 3 . . 6 9 Energy Gun 8 | 1 . 3 . . 2 2 Energy Cannon 4 | . . . . . 1 3 Ballistic Gun 3 | 1 . . . . . 2 Ballistic Cannon 3 | . . . . . 1 2 Launcher 1 | . . . . . 1 . Special Weapon . | . . . . . . . Impact Weapon . | . . . . . . . Slashing Weapon 1 | . . . . . 1 . Piercing Weapon . | . . . . . . . Special Melee Weapon . | . . . . . . . Unidentified Prototypes 5 | . . 1 . . . 4 Parts Lost 45 | . 1 5 . . 14 25 Power 10 | . 1 . . . 3 6 Propulsion 22 | . . 2 . . 8 12 Utility 1 | . . . . . . 1 Weapon 12 | . . 3 . . 3 6 Highest Loss Streak 6 | . 1 3 . . 6 5 To Critical Strikes . | . . . . . . . Average Backups 8 | 2 6 8 9 9 8 9 Power 1 | . 1 2 3 3 2 1 Propulsion 1 | 1 3 1 2 2 1 . Utility 1 | . . . 1 1 2 2 Weapon 3 | . 1 3 3 3 2 4 Tool/Special . | . . . . . . . Unused Backups 12 | . . 1 . 1 1 9 Power 2 | . . . . . 1 1 Propulsion 2 | . . . . . . 2 Utility 2 | . . . . . . 2 Weapon 6 | . . 1 . 1 . 4 Tool/Special . | . . . . . . . Average Slot Usage (%) 86 | . 96 98 100 89 93 72 Engine 10 | . 13 11 11 9 8 9 Treads 6 | . 28 . . . . 9 Leg 23 | . . 42 44 39 39 8 Wheel 1 | . . . . . . 3 Device 1 | . 1 . . . . 2 Storage 9 | . 14 11 11 9 9 6 Processor 13 | . 9 11 11 14 18 11 Energy Gun 8 | . 14 16 22 18 4 4 Ballistic Gun 4 | . 14 5 . . . 4 Ballistic Cannon 3 | . . . . . 4 4 Launcher 1 | . . . . . 6 . Peak Build Rating 42 | 6 9 15 14 19 23 42 Average Rating 20 | 4 7 12 14 16 19 30 On Entrance 11 | . 6 9 14 14 19 20 Avg Prop Armor Cover (%) 16 | . . . . . . 16 Naked Turns . | . . . . . . . Heaviest Build 45 | 13 14 19 19 19 27 45 Greatest Support 53 | 40 40 40 40 50 53 53 Greatest Overweight (x) 11 | . . . . . 2 11 Average Overweight (x) . | . . . . . . . Largest Inventory Capacity 10 | 8 8 10 10 10 10 10 Average Capacity 9 | 6 8 9 10 10 10 9 Most Carried 10 | 4 8 10 10 10 10 10 Average Carried 8 | 2 6 8 9 9 8 9 Final Capacity 10 | 8 8 10 10 10 10 5 Final Carried 10 | 4 8 9 9 10 9 5 Class Distribution -------------------- 79% | Scavenger-Mutant 20% | Mutant Dominant Class ---------------- Mutant | -10/Materials Scavenger-Mutant | -9/Materials Scavenger-Mutant | -9/Mines Scavenger-Mutant | -8/Materials Scavenger-Mutant | -8/Garrison Scavenger-Mutant | -7/Factory Resources | -11 -10 -9 -9 -8 -8 -7 ----------- Run | Yrd Mat Mat Min Mat Gar Fac Matter Collected 2138 | 192 118 225 10 30 725 838 Remotely . | . . . . . . . Salvage Created 3471 | . 267 995 37 . 857 1315 Parts 184 | . 16 60 5 . 45 58 Haulers Intercepted 3 | . 1 2 . . . . Recyclers Shooed 6 | . . . . . . 6 Parts Field Recycled . | . . . . . . . Retrieved Matter . | . . . . . . . Parts Self-Destructed . | . . . . . . . Prevented . | . . . . . . . Parts Restored . | . . . . . . . Kills | -11 -10 -9 -9 -8 -8 -7 ------- Run | Yrd Mat Mat Min Mat Gar Fac Combat Hostiles Destroyed 85 | . 6 18 2 . 31 28 Melee 1 | . . . . . 1 . Guns 50 | . 6 18 2 . 10 14 Cannons 19 | . . . . . 8 11 AOE 14 | . . . . . 12 2 Classes Destroyed 12 | . 4 4 . . 1 3 Worker 2 | . . 1 . . . 1 Builder 2 | . . . . . . 2 Hauler 3 | . 1 2 . . . . Recycler 3 | . . . . . . 3 Mechanic 1 | . . 1 . . . . Watcher 7 | . 1 4 . . . 2 Swarmer 28 | . 3 4 2 . 11 8 Grunt 34 | . 3 10 . . 14 7 Duelist 3 | . . 1 . . 2 . Sentry 13 | . . 3 . . 2 8 Hunter 4 | . . . . . 2 2 Programmer 3 | . . . . . . 3 Best Kill Streak 7 | . 3 7 2 . 7 5 Combat Bots Only 7 | . 3 6 2 . 7 5 Max Kills in Single Turn 3 | . 1 2 1 . 3 2 Gunslinging 1 | . . 1 . . . . Exploded 3 | . . . . . 3 1 Melee 1 | . . . . . 1 . Uniques/NPCs Destroyed . | . . . . . . . Combat | -11 -10 -9 -9 -8 -8 -7 -------- Run | Yrd Mat Mat Min Mat Gar Fac Hostile Shots Fired 844 | . 32 89 3 . 164 556 Missed 260 | . 4 26 . . 49 181 Hits 584 | . 28 63 3 . 115 375 Melee 5 | . . 1 . . 4 . Projectile 579 | . 28 62 3 . 111 375 AOE 1 | . . . . . . 1 Critical Strikes 8 | . 1 2 . 1 2 2 Damage Taken 6514 | . 280 761 25 21 1651 3776 Core 1154 | . 32 128 . 21 232 741 Absorbed by Shields . | . . . . . . . Core Remaining (%) 77 | 100 87 . 68 . 54 . Volleys Fired 265 | . 27 77 2 1 61 97 Largest 2 | . 2 2 2 2 2 2 Hottest 135 | . 60 101 101 101 133 135 Shots Fired 509 | . 54 148 4 2 111 190 Gun 358 | . 54 148 4 2 30 120 Cannon 123 | . . . . . 54 69 Launcher 28 | . . . . . 27 1 Special . | . . . . . . . Kinetic 207 | . 27 34 . . 44 102 Thermal 181 | . . 65 2 1 26 87 Explosive 28 | . . . . . 27 1 Electromagnetic 93 | . 27 49 2 1 14 . Robot Hit Streak 19 | . 8 13 4 1 7 19 Robot Miss Streak 9 | . 3 5 2 1 2 9 Penetration Max . | . . . . . . . Secondary Targets 6 | . . 3 . . 2 1 Max Gunslinging Chain 1 | . . 1 . . 1 1 Shots Hit Robots 336 | . 33 97 3 1 64 138 Core Hits 207 | . 14 44 2 1 52 94 Critical Kills . | . . . . . . . Critical Parts Destroyed 1 | . 1 . . . . . Critical Strikes 11 | . 1 2 . . 2 6 Burn 4 | . . 2 . . . 2 Destroy 1 | . 1 . . . . . Blast 6 | . . . . . 2 4 Melee Attacks 52 | . . . . . 45 7 Impact . | . . . . . . . Slashing 52 | . . . . . 45 7 Piercing . | . . . . . . . Sneak Attacks . | . . . . . . . Combat Hostiles . | . . . . . . . Follow-up Attacks . | . . . . . . . Damage Inflicted 7198 | . 395 1392 49 12 2138 3212 Guns 3898 | . 372 1392 49 12 323 1750 Cannons 2042 | . . . . . 680 1362 Explosions 1217 | . 21 . . . 1100 96 Melee 35 | . . . . . 35 . Ramming 6 | . 2 . . . . 4 Kinetic 2817 | . 150 181 . . 556 1930 Thermal 2089 | . 21 569 30 . 287 1182 Explosive 1191 | . . . . . 1095 96 Electromagnetic 1060 | . 222 642 19 12 165 . Impact . | . . . . . . . Slashing 35 | . . . . . 35 . Piercing . | . . . . . . . Highest Corruption 1 | . . . . . . 1 Average Corruption 1 | . . . . . . 1 Corruption Purged . | . . . . . . . Corruption Blocked . | . . . . . . . Effects 2 | . . . . . . 2 Energy Discharges 2 | . . . . . . 2 Overload Shots . | . . . . . . . Overflow Damage 75 | . . . . . 52 23 Projectiles 15 | . . . . . 4 11 Explosions 60 | . . . . . 48 12 Melee . | . . . . . . . Knockbacks 10 | . . . . . 4 6 Impact . | . . . . . . . Kinetic 8 | . . . . . 3 5 Secondary 2 | . . . . . 1 1 Self-Inflicted Damage 135 | . . 40 . . 94 1 Shots 5 | . . 1 . . 4 . Rammed 3 | . 1 . . . . 2 Targets Rammed 3 | . 1 . . . . 2 Kicked . | . . . . . . . Crushed . | . . . . . . . Highest Temperature 512 | . 109 507 60 21 397 512 Average Temperature 103 | . 27 136 34 11 86 102 Received Heat Transfer 1902 | . 93 234 . 27 585 963 Effects 13 | . . 5 . . 3 5 Shutdowns 3 | . . 2 . . . 1 Energy Bleed 1 | . . 1 . . . . Interference 7 | . . 1 . . 3 3 Matter Decay 1 | . . 1 . . . . Damage (core) 1 | . . . . . . 1 Siege Activations . | . . . . . . . Martial Activations . | . . . . . . . Shielding Activations . | . . . . . . . Robots Disrupted 1 | . . 1 . . . . Combat Hostiles 1 | . . 1 . . . . Robots Corrupted . | . . . . . . . Combat Hostiles . | . . . . . . . Parts Fried 2 | . 1 . . . 1 . Impact Corruptions . | . . . . . . . Robots Melted 1 | . . . . . . 1 Combat Hostiles 1 | . . . . . . 1 Parts Melted 4 | . . 3 . . . 1 Heat Transferred 4716 | . 50 1591 74 . 642 2359 Parts Sabotaged . | . . . . . . . Parts Stolen . | . . . . . . . Parts Stripped . | . . . . . . . Power Chain Reactions 3 | . 1 1 . . 1 . Alert | -11 -10 -9 -9 -8 -8 -7 ------- Run | Yrd Mat Mat Min Mat Gar Fac Maximum Alert Level 3 | . . 1 . . 3 2 Low Security (%) 33 | 100 100 68 100 100 9 . Level 1 9 | . . 31 . . 17 1 Level 2 51 | . . . . . 52 98 Level 3 5 | . . . . . 20 . Level 4 . | . . . . . . . Level 5 . | . . . . . . . High Security . | . . . . . . . Max Security . | . . . . . . . Peak Influence 1002 | . 55 340 123 58 1002 599 Initial 525 | . . 7 123 35 27 525 Average 332 | . 16 110 81 31 514 457 Influence Increases 2941 | . 190 584 89 57 1115 906 Destroy 0b10 Robot/C 1760 | . 120 360 60 40 620 560 Destroy 0b10 Robot/NC 90 | . 10 40 . . . 40 Destroy Leader 370 | . 34 82 10 10 50 184 Allied During Kill 7 | . . . 4 3 . . Successful Hack 37 | . 5 7 . 4 . 21 Disable Machine 165 | . 15 . . . 90 60 Anti-Garrison Action 300 | . . . . . 300 . Destroy Structure 62 | . 6 5 . . 40 11 Lose Combat Pursuer 150 | . . 90 15 . 15 30 Influence Decreases 2352 | . 171 287 313 107 155 1319 Entered New Map 754 | . . 12 193 57 15 477 Time Decay 1158 | . 161 235 120 50 . 592 Lost Part 440 | . 10 40 . . 140 250 Squads Dispatched 16 | . 1 2 . 1 . 12 Investigation 2 | . . . . . . 2 Extermination 3 | . . . . . . 3 Reinforcement 6 | . 1 2 . 1 . 2 Assault . | . . . . . . . Garrison 5 | . . . . . . 5 Intercept . | . . . . . . . Searches Triggered . | . . . . . . . Construction Impeded . | . . . . . . . Haulers Reinforced . | . . . . . . . Active Scanning Responses . | . . . . . . . Cargo Convoy Interrupts . | . . . . . . . Stealth | -11 -10 -9 -9 -8 -8 -7 --------- Run | Yrd Mat Mat Min Mat Gar Fac Distress Signals 8 | . 1 4 . . . 3 Communications Jammed . | . . . . . . . Distress Signals . | . . . . . . . Times Spotted 130 | . 8 36 3 3 32 48 Peak Tracking Total 9 | . 3 9 3 2 5 5 Tactical Retreats 10 | . . 4 1 . 1 4 ECM-based Alert Blocks 4 | . . . . . . 4 Traps | -11 -10 -9 -9 -8 -8 -7 ------- Run | Yrd Mat Mat Min Mat Gar Fac Traps Triggered 6 | . . . . . 4 2 Indirectly . | . . . . . . . Trap Hack Attempts . | . . . . . . . Triggered . | . . . . . . . Disarmed . | . . . . . . . Reprogrammed . | . . . . . . . Reused . | . . . . . . . Traps Extracted . | . . . . . . . Installed . | . . . . . . . Triggered . | . . . . . . . Machines | -11 -10 -9 -9 -8 -8 -7 ---------- Run | Yrd Mat Mat Min Mat Gar Fac Machines Disabled 15 | . 1 . . . 10 4 Max in Single Turn 1 | . 1 . . . 1 1 Garrison Relay 4 | . . . . . 4 . Machines Repaired . | . . . . . . . Machines Dismantled . | . . . . . . . Machines Sabotaged . | . . . . . . . Overloaded Fab Kills . | . . . . . . . Hacking | -11 -10 -9 -9 -8 -8 -7 --------- Run | Yrd Mat Mat Min Mat Gar Fac Machines Accessed 15 | . 2 4 . 1 1 7 Terminals 6 | . 2 2 . . 1 1 Fabricators 2 | . . . . . . 2 Repair Stations 2 | . . . . . . 2 Recycling Units . | . . . . . . . Scanalyzers 3 | . . 2 . . . 1 Garrison Access 2 | . . . . 1 . 1 Total Hacks 37 | . 7 11 . 2 2 15 Successful 12 | . 1 6 . 1 . 4 Failed 24 | . 6 4 . 1 2 11 Catastrophic 5 | . 1 . . . . 4 Database Lockouts 1 | . . 1 . . . . Manual 3 | . 2 . . . . 1 Terminals 18 | . 7 8 . . 2 1 Fabricators 4 | . . . . . . 4 Repair Stations 4 | . . . . . . 4 Recycling Units . | . . . . . . . Scanalyzers 5 | . . 3 . . . 2 Garrison Access 6 | . . . . 2 . 4 Terminal Hacks 6 | . 1 4 . . . 1 Open DSF 1 | . . . . . . 1 Branch Access Points 1 | . . 1 . . . . Emergency Access Points 1 | . . 1 . . . . Scanalyzer Index 1 | . . 1 . . . . Zone Layout 2 | . 1 1 . . . . Fabricator Hacks 2 | . . . . . . 2 Network Status 2 | . . . . . . 2 Repair Station Hacks 1 | . . . . . . 1 Refit 1 | . . . . . . 1 Recycling Unit Hacks . | . . . . . . . Scanalyzer 2 | . . 2 . . . . Retrieve Study 2 | . . 2 . . . . Garrison Access Hacks 1 | . . . . 1 . . Unlock Access 1 | . . . . 1 . . Unauthorized Hacks . | . . . . . . . Terminals . | . . . . . . . Fabricators . | . . . . . . . Repair Stations . | . . . . . . . Recycling Units . | . . . . . . . Scanalyzers . | . . . . . . . Garrison Access . | . . . . . . . Data Cores Recovered . | . . . . . . . Used . | . . . . . . . Hacking Detections 12 | . 2 3 . . 1 6 Full Trace Events 1 | . . . . . . 1 Feedback Events . | . . . . . . . Feedback Blocked . | . . . . . . . Robot Schematics Acquired . | . . . . . . . Robots Built . | . . . . . . . Authchips . | . . . . . . . Time . | . . . . . . . Total Robot Build Rating . | . . . . . . . Part Schematics Acquired . | . . . . . . . Parts Built . | . . . . . . . Authchips . | . . . . . . . Time . | . . . . . . . Total Part Build Rating . | . . . . . . . Part Studies Acquired 2 | . . 2 . . . . Parts Repaired . | . . . . . . . Time . | . . . . . . . Parts Recycled . | . . . . . . . Recycled Matter . | . . . . . . . Retrieved Matter . | . . . . . . . Retrieved Components . | . . . . . . . Parts Scanalyzed . | . . . . . . . Part Schematics Acquired . | . . . . . . . Parts Damaged . | . . . . . . . Bothacking | -11 -10 -9 -9 -8 -8 -7 ------------ Run | Yrd Mat Mat Min Mat Gar Fac Used RIF Installer . | . . . . . . . Robots Hacked . | . . . . . . . Non-combat . | . . . . . . . Combat . | . . . . . . . Robot Hacks Applied . | . . . . . . . Relay Couplers Released 18 | . . . . . 18 . Machine Destruction 18 | . . . . . 18 . Fabnet Peak Effective % . | . . . . . . . Robots Rewired . | . . . . . . . Allies Hacked . | . . . . . . . Hacks Repelled . | . . . . . . . Allies | -11 -10 -9 -9 -8 -8 -7 -------- Run | Yrd Mat Mat Min Mat Gar Fac Total Allies 1 | . . . 1 . . . Largest Group 1 | . . . 1 1 1 . Highest-Rated Group 31 | . . . 31 31 31 . Highest-Rated Ally 31 | . . . 31 31 31 . Initial Warlord ECA Mod 5 | . . . . . . 5 Total Orders . | . . . . . . . Ally Attacks 13 | . . . 3 9 1 . Total Damage 144 | . . . 60 84 . . Kills 3 | . . . 1 2 . . Allies Corrupted . | . . . . . . . Allies Melted . | . . . . . . . Intel | -11 -10 -9 -9 -8 -8 -7 ------- Run | Yrd Mat Mat Min Mat Gar Fac Active Infowar (turns) 4594 | . 424 729 243 106 1225 1867 Optics 4537 | . 367 729 243 106 1225 1867 Sensors 57 | . 57 . . . . . ECM 681 | . . . . . . 681 Robot Analysis Total . | . . . . . . . Derelict Logs Recovered 1 | . . . 1 . . . Drone Launches . | . . . . . . . Drone Recoveries . | . . . . . . . Exploration | -11 -10 -9 -9 -8 -8 -7 ------------- Run | Yrd Mat Mat Min Mat Gar Fac Turns Passed 4807 | 112 520 729 243 106 1225 1872 Spaces Moved 2935 | 65 261 376 223 82 791 1137 Core 20 | 9 . . . . . 11 Treads 415 | 56 261 . . . . 98 Legs 1834 | . . 376 223 82 791 362 Wheels 635 | . . . . . . 635 Hover . | . . . . . . . Flight 31 | . . . . . . 31 Fastest Speed 50 | 50 160 105 105 105 105 100 Average Speed 122 | 144 160 115 105 105 110 127 Slowest Speed 675 | 160 160 120 105 105 245 675 Overloaded Moves . | . . . . . . . Propulsion Burnouts . | . . . . . . . Robots Hopped . | . . . . . . . Potential Cave-ins . | . . . . . . . Cave-ins Triggered . | . . . . . . . Exploration Rate (%) 35 | 3 48 33 53 9 72 32 Regions Visited 6 Branch Regions 1 Pre-discovered Areas . | . . . . . . . Known Exits Taken 2 | . . 1 . 1 . . Unknown Exits Taken 3 | 1 1 . 1 . . . Scrap Searched 1 | . . . 1 . . . Spaces Dug 2 | . . . . . 2 . Terrain Destroyed 81 | . 6 2 . . 65 8 Melee . | . . . . . . . Projectile 9 | . . . . . 1 8 AOE 72 | . 6 2 . . 64 . Terrain Rammed . | . . . . . . . Walls Destroyed . | . . . . . . . Machines Disabled . | . . . . . . . Actions | -11 -10 -9 -9 -8 -8 -7 --------- Run | Yrd Mat Mat Min Mat Gar Fac Total 3549 | 80 313 530 227 101 949 1349 Wait 115 | 6 17 45 1 10 10 26 Move 2926 | 64 260 375 222 81 787 1137 Hop . | . . . . . . . Pick Up 42 | 4 4 8 . 2 6 18 Fast Attach 45 | 6 3 5 . 2 9 20 Attach 19 | . . 5 . . 6 8 Detach . | . . . . . . . Swap 39 | . . 6 1 2 14 16 Drop 35 | . 1 9 1 3 3 18 Fire 265 | . 27 77 2 1 61 97 Melee 52 | . . . . . 45 7 Ram 2 | . . . . . . 2 Kick . | . . . . . . . Crush 1 | . 1 . . . . . Escape Stasis 8 | . . . . . 8 . Rewire . | . . . . . . . Trap . | . . . . . . . Miscellaneous . | . . . . . . . Route ------- -11/Scrapyard -10/Materials (discovered 2 exits: *Mat / [*Min]) -9/Materials -9/Mines -8/Materials -8/Garrison (discovered 3 exits: *Fac x3) -7/Factory (discovered 1 exit: [*Fac]) History --------- Turn | Location | Event 11 | -11/Scrapyard | Discovered new exit (range 15) 113 | -11/Scrapyard | Entered Materials 306 | -10/Materials | Build established: Mutant 319 | -10/Materials | Discovered new exit (range 15) 447 | -10/Materials | Discovered new exit (range 10) 633 | -10/Materials | Entered another Materials area 633 | -9/Materials | Evolved 2 slots: Propulsion x2 660 | -9/Materials | Identified exit to Mines 1053 | -9/Materials | Build established: Scavenger-Mutant 1265 | -9/Materials | Central database locked down 1336 | -9/Materials | Lost 3 parts (2n1w) 1362 | -9/Materials | Entered Mines 1474 | -9/Mines | Learned location of 1 exit from Proximity Caves 1483 | -9/Mines | Received a Mining Laser from a helpful Derelict 1568 | -9/Mines | Discovered new exit (range 3) 1605 | -9/Mines | Entered Materials 1605 | -8/Materials | Accompanied by 1 ally 1605 | -8/Materials | Evolved 2 slots: Propulsion x1, Utility x1 1710 | -8/Materials | Identified exit to Garrison 1711 | -8/Materials | Entered Garrison 1711 | -8/Garrison | Accompanied by 1 ally 1729 | -8/Garrison | Triggered checkpoint 1781 | -8/Garrison | Triggered checkpoint 1823 | -8/Garrison | Triggered checkpoint 1829 | -8/Garrison | Triggered checkpoint 1835 | -8/Garrison | Triggered checkpoint 1889 | -8/Garrison | Destroyed 7 combat bots 1893 | -8/Garrison | Lost 6 parts (1p4n1w) 2021 | -8/Garrison | Garrison Relay disabled 2025 | -8/Garrison | Discovered new exit (range 13) 2052 | -8/Garrison | Attempted to access garrison exit controls, blocked by remote lockdown 2237 | -8/Garrison | Triggered checkpoint 2284 | -8/Garrison | Garrison Relay disabled 2479 | -8/Garrison | Triggered checkpoint 2520 | -8/Garrison | Lost 5 parts (1p3n1w) 2545 | -8/Garrison | Garrison Relay disabled 2607 | -8/Garrison | Discovered new exit (range 10) 2701 | -8/Garrison | Attempted to access garrison exit controls, blocked by remote lockdown 2851 | -8/Garrison | Triggered checkpoint 2879 | -8/Garrison | Garrison Relay disabled 2924 | -8/Garrison | Discovered new exit (range 11) 2936 | -8/Garrison | Entered Factory 2936 | -7/Factory | Evolved 2 slots: Power x1, Propulsion x1 3152 | -7/Factory | Discovered new exit (range 14) 3419 | -7/Factory | Lost 3 parts (1p2n) 3637 | -7/Factory | Lost 4 parts (1p1n2w) 3684 | -7/Factory | Lost 3 parts (1p1n1w) 4141 | -7/Factory | Core integrity fell below 50% 4559 | -7/Factory | Lost 4 parts (2n2w) 4648 | -7/Factory | Garrison activated, responded to threat 4680 | -7/Factory | Core integrity fell below 20% 4724 | -7/Factory | Lost 5 parts (2p2n1u) 4809 | -7/Factory | Core destroyed Last Messages --------------- 04735_ Acquired System Shield. 04741_ Acquired 53 matter. 04745_ Acquired 30 matter. 04759_ G-47 Trooper destroyed. 04767_ Acquired Aluminum Leg+. 04769_ Acquired 51 matter. 04773_ System corrupted: Energy discharge (-90). 04776_ Dropped Flak Gun. 04776_ Acquired Plasma Cannon. 04780_ Slammed into W-25 Informer. 04788_ G-47 Trooper destroyed. 04801_ ALERT: Hostiles spotted, dispatching reinforcements to Terminal F010. 04802_ Power failure, Mic. Nuclear Core shutdown. 04803_ Overheating: System interference. 04803_ Visual Processing Unit temporarily disabled. 04803_ Adv. ECM Suite temporarily disabled. 04808_ Hvy. Particle Gun destroyed. 04808_ K-01 Serf collects debris. 04809_ Overheating: Core damaged (-98). Map ----- +----------------------------------------------------+ | ????????????????????????????+ ???????????????????? | | ????????????????????? ?????# ???????????????????? | | ?????????????????????? ###+## ???????????????????? | | ??????????????????????? ???????????????????? | | ???????????????????????? ???????????????????? | | ????????????????????????? ???????????????????? | | ?????????????????????????# ??????????+????####+ | | ?????????????????????????# ?????????# #???# | | ?????????????????????????? ##???????# #???# | | ???????????????????????????# ####????# #???# | | ???????????????????????????# ????? #???# | | ???????????????????????????? ""#####?# #???# | | ???????????????????????????###"" ### #???# | | ???????????????????????###+########## # #???# | | ???????????????????????# # # #???# ^ | | ??????#????????????????# """ #### ##### | | ??????# ???###########?# """ # | | ??????# ???# ] ! #?# """ # | | ??????# ??# #?# "S # ^ | | ??????+ ?+ #?# "" [ + | | ???????# ?# #?# "" # | | ???????# ####+######?# ! =#* | | ???????# #### #??????# =%%k! | | ???????# ###????# ]]/ g # ###### | | ????#### [###### ]/ # #????? | | ????# ! = + @ ]/ # +????? | | ????# [ ################### #????? | | ????#"" ##+###?????????????????# +????? | | ????#"" ? ???????????????????# #????? | | ????#G ? "???????????????????# #????? | | ????#"" " ?# ""??????????????????# #????? | | ????#"" " ?# ""??????????????????# #????? | | ????# " ?# ?????????????????####+####????? | | ????# " ??# ??????????????????????????????? | | ????# " ??# ?????????????????????????????? | | ????# "???# ] "?????????????????????????????? | | ????# "???# ??????????????????????????????? | | ????# ?????#####???????????????????????????????? | | ????? ??????????????????????????????????????????? | | ?????????????????????????????????????????????????? | | ?????????????????????????????????????????????????? | | ?????????????????????????????????????????????????? | | ?????????????????????????????????????????????????? | | ?????????????????????????????????????????????????? | | ?????????????????????????????????###?????######### | | ????????????????????????????????? ?? # | | ?????????????????????????????????? ?? #? """ | | ???????????????????????????????#??" "" # """ | | ???????????????????????????????# "" "" # """ | | ???????????????????????????????# """ """ # | +----------------------------------------------------+ Best States ------------- Heat Dissipation 34 Energy Generation 31 Energy Capacity 520 Matter Stores 300 Matter Capacity 300 Sight Range 18 Robot Scan Range 14 Terrain Scan Density 110 ECM Strength 2 Evasion (%) 55 Recoil Reduction 2 Defensive Hacking 10 Item Schematics ----------------- None Robot Schematics ------------------ None Fabricated ------------ Nothing Repaired ---------- Nothing Studied --------- Aluminum Leg | -9/Materials | Hacked Grenade Launcher | -9/Materials | Hacked Alien Tech Used ----------------- None Achievements -------------- Resistances Are Futile Challenges ------------ None Game ------ Seed CooledDisruptorNeutralizer Manual? 0 Play Time 00:55:23 Cumulative 9.3 hours Start 2026.02.14 @ 10:12:49 End 2026.02.14 @ 11:07:55 Sessions 1 Manual Loads 0 Difficulty Rogue Special Mode None Game No. 8 Rogue 8 Adventurer 0 Explorer 0 Win Type - Total 0 Types 0/0/0/0/0/0/0/0/0/0 Lore% 3 Gallery% 16 Achievement% 12 Wizard Run 0 Options --------- Layout 0 ASCII 0 Keyboard 0 Movement Arrows Keybinds 0 Fullscreen 1 Font 18/SmallcapsGlow Map View 76x50 Zoom Use 0% Tactical HUD 1 Map Filters NONE Filters NONE Steam 1 RUN: 7ea7fee8-46fa-44b2-9995-d0bc465a06b8